[Event "CZE-ch U12 2020"]
[Site "Kouty nad Desnou"]
[Date "2020.03.08"]
[Round "2.8"]
[White "Day, Tobias"]
[Black "Tesar, Jakub"]
[Result "1-0"]
[ECO "B50"]
[WhiteElo "1837"]
[BlackElo "1446"]
[Annotator "NA"]
[PlyCount "83"]
[EventDate "2020.03.07"]
[EventCountry "CZE"]
[SourceTitle "playchess.com"]
[Source "ChessBase"]
[SourceQuality "1"]
[TimeControl "5400+30"]

{[%evp 8,76,34,25,20,4,25,32767,32767,-6,32767,0,0,32767,0,0,37,32767,32767,-30,31,32767,0,32767,70,32767,32767,76,69,32767,32767,33,9,-6,32767,0,0,-4,0,-37,0,32767,0,0,0,-33,-10,-58,-9,-3,32767,0,32767,-14,81,41,32767,24,32767,32767,32767,32767,32767,32767,32767,32767,32767,290,322,392,441]} 1. e4 {[%emt 0:00:00]} c5 {[%emt 0:00:00]} 2. Nf3 {[%emt 0:00:00]} d6 {[%emt 0:00:00]} 3. d4 {[%emt 0:00:06]} Nf6 {[%emt 0:00:28]} 4. Nc3 {[%emt 0:00:36]} cxd4 {[%emt 0:00:11]} 5. Qxd4 {[%emt 0:05:14]} Nc6 {[%emt 0:00:26]} 6. Bb5 {[%emt 0:00:11] B53: Sicilian: 2...d6: Lines with Qxd4.} e5 {[%emt 0:00:12]} 7. Qd3 {[%emt 0:00:57]} a6 {[%emt 0:00:54]} 8. Bxc6+ {[%emt 0:01:04]} bxc6 {[%emt 0:00:10]} 9. Bg5 {[%emt 0:00:31]} h6 {[%emt 0:03:21]} 10. Bh4 {[%emt 0:03:00]} Be6 {[%emt 0:03:13]} 11. Rd1 {[%emt 0:10:30] [#]} Be7 $146 {[%emt 0:15:14]} ({Predecessor:} 11... g5 12. Bg3 Nh5 13. Qe3 Nxg3 14. fxg3 Qa5 15. O-O Rd8 16. Qa7 Bc4 17. Rf2 Be7 {1-0 (32) Andrades,D-Poffo,A Pan American 1998}) 12. O-O {[%emt 0:06:08]} Qd7 {[%emt 0:07:55]} 13. Rd2 {[%emt 0:10:18]} (13. Bxf6 $14 gxf6 14. Nd2) 13... Rg8 {[%emt 0:12:24]} ({Black should play} 13... g5 $15 14. Bg3 O-O) 14. Rfd1 {[%emt 0:12:06]} g5 {[%emt 0:09:35]} 15. Bg3 {[%emt 0:00:28]} h5 {[%emt 0:05:18]} ({Black should play} 15... Qb7 $11) 16. h4 {[%emt 0:00:55]} gxh4 {[%emt 0:06:47]} 17. Bxh4 {[%emt 0:12:02]} Bh3 {[%emt 0:12:09]} 18. g3 {[%emt 0:05:23]} Bg4 {[%emt 0:02:48]} 19. Re1 {[%emt 0:02:36]} Bxf3 {[%emt 0:09:24]} 20. Bxf6 {[%emt 0:03:39]} Bxf6 {[%emt 0:00:51]} 21. Qxf3 {[%emt 0:00:13] Double Attack} Bg5 {[%emt 0:00:55]} 22. Rd3 {[%emt 0:01:29]} h4 {[%emt 0:00:51]} 23. Qg2 {[%emt 0:01:38]} Be7 {[%emt 0:01:13]} 24. Nd1 {[%emt 0:01:48]} hxg3 {[%emt 0:00:49]} 25. Rxg3 {[%emt 0:00:53]} Rxg3 {[%emt 0:00:14]} 26. fxg3 {[%emt 0:00:11]} Qe6 {[%emt 0:00:29]} 27. Re3 {[%emt 0:06:14]} Qxa2 (27... d5 $17 28. Kf1 Bc5) 28. Rb3 {[%emt 0:02:02]} Qa5 {[%emt 0:04:01]} 29. Kf1 {[%emt 0:03:02]} Qc7 {[%emt 0:00:32]} 30. Ne3 {[%emt 0:01:06]} O-O-O {[%emt 0:01:41]} (30... a5 $11) 31. Qh3+ {[%emt 0:04:56]} Qd7 {[%emt 0:00:42]} 32. Nf5 {[%emt 0:00:24]} Bf8 {[%emt 0:01:15]} 33. g4 {[%emt 0:03:40]} Qe6 {[%emt 0:00:58]} 34. Qd3 {[%emt 0:00:12]} Kd7 {[%emt 0:01:22]} 35. Qxa6 {[%emt 0:01:05]} Rc8 {[%emt 0:00:33]} 36. Rb7+ {[%emt 0:00:48]} Ke8 {[%emt 0:00:24]} 37. Rb6 {[%emt 0:00:52]} Qd7 {[%emt 0:00:14]} 38. b4 {[%emt 0:00:23]} Kd8 $18 {[%emt 0:00:39]} 39. b5 {[%emt 0:00:33]} cxb5 {[%emt 0:00:40]} 40. Nxd6 {[%emt 0:00:15]} Rxc2 {[%emt 0:00:31]} 41. Rb8+ {[%emt 0:00:35]} Ke7 {[%emt 0:00:24]} 42. Nf5+ 1-0

[Event "CZE-ch U12 2020"]
[Site "Kouty nad Desnou"]
[Date "2020.03.08"]
[Round "2.9"]
[White "Hobza, Richard"]
[Black "Tichy, Tomas"]
[Result "1/2-1/2"]
[ECO "A46"]
[WhiteElo "1251"]
[BlackElo "1810"]
[Annotator "NA"]
[PlyCount "74"]
[EventDate "2020.03.07"]
[EventCountry "CZE"]
[SourceTitle "playchess.com"]
[Source "ChessBase"]
[SourceQuality "1"]
[TimeControl "5400+30"]

1. d4 {[%emt 0:00:00]} Nf6 {[%emt 0:00:00]} 2. Nf3 {[%emt 0:00:00]} c5 {[%emt 0:00:29]} 3. e3 {[%emt 0:03:46]} g6 {[%emt 0:01:06]} 4. c3 {[%emt 0:01:23]} cxd4 {[%emt 0:04:00]} 5. exd4 {[%emt 0:02:07]} Bg7 {[%emt 0:02:18]} 6. Bc4 {[%emt 0:02:40] A48: 1 d4 Nf6 2 Nf3 g6: Torre, London and Colle Systems.} d5 {[%emt 0:03:24]} 7. Bd3 {[%emt 0:04:29]} O-O {[%emt 0:01:13]} 8. O-O {[%emt 0:03:35]} Bg4 {[%emt 0:02:35]} 9. h3 {[%emt 0:02:06]} Bd7 {[%emt 0:03:36] [#]} (9... Bxf3 $5 10. Qxf3 Nc6 $11) 10. Be3 $146 {[%emt 0:03:26]} ({Predecessor:} 10. Re1 Nc6 11. Be3 Qc8 12. Kh2 Re8 13. Nbd2 Qc7+ 14. g3 Nh5 15. Nf1 e5 16. dxe5 Nxe5 17. Nxe5 Bxe5 {½-½ (26) Dominguez Gutierrez,J (1559)-Segura Acosta,R (1101) Gran Canaria 2019}) 10... Nc6 {[%emt 0:01:37]} 11. Nbd2 {[%emt 0:02:06]} a6 {[%emt 0:04:57]} 12. Nb3 {[%emt 0:02:52]} b6 {[%emt 0:11:27]} 13. Qd2 {[%emt 0:04:25]} Re8 {[%emt 0:04:29]} 14. Rfe1 {[%emt 0:03:34]} Qc8 {[%emt 0:05:32]} 15. Kh2 {[%emt 0:12:54]} (15. Ne5 $14) 15... Bf5 {[%emt 0:04:57]} 16. Qc2 {[%emt 0:02:32]} Bxd3 {[%emt 0:01:57]} 17. Qxd3 {[%emt 0:00:42]} Qc7+ {[%emt 0:04:37]} 18. Kg1 {[%emt 0:02:19]} Qb7 {[%emt 0:12:47]} 19. Rac1 $11 {[%emt 0:08:13]} Rac8 {[%emt 0:03:25]} 20. Bf4 {[%emt 0:09:42]} Nd7 {[%emt 0:03:08]} 21. Ne5 {[%emt 0:03:54]} Ncxe5 {[%emt 0:02:19]} 22. Bxe5 {[%emt 0:00:47]} Nxe5 {[%emt 0:00:47]} 23. dxe5 {[%emt 0:00:14]} e6 {[%emt 0:03:21]} 24. c4 {[%emt 0:02:42]} dxc4 {[%emt 0:00:49]} 25. Rxc4 {[%emt 0:00:18]} Rxc4 {[%emt 0:02:30]} 26. Qxc4 {[%emt 0:00:22]} Rc8 {[%emt 0:01:07]} 27. Qe2 {[%emt 0:00:48]} a5 {[%emt 0:02:13]} 28. Qb5 {[%emt 0:03:54]} Rb8 {[%emt 0:05:29]} 29. Nd2 {[%emt 0:03:41]} Bf8 {[%emt 0:02:11]} 30. Nf3 {[%emt 0:00:44]} Bb4 {[%emt 0:00:29]} 31. Rd1 {[%emt 0:00:36]} Qe4 {[%emt 0:04:31]} 32. a3 {[%emt 0:02:18]} Bc5 {[%emt 0:00:21]} 33. Re1 {[%emt 0:01:17]} Qc2 {[%emt 0:00:27]} 34. Qe2 {[%emt 0:00:27]} Qb3 {[%emt 0:00:33]} 35. Rd1 {[%emt 0:04:09]} Rc8 {[%emt 0:01:08]} 36. Rd3 {[%emt 0:01:27]} Qa4 {[%emt 0:00:31]} 37. Qd2 {[%emt 0:01:01]} Qc6 1/2-1/2

[Event "CZE-ch U12 2020"]
[Site "Kouty nad Desnou"]
[Date "2020.03.08"]
[Round "2.10"]
[White "Nguyen, Thai Dang Vi"]
[Black "Sigut, Ondrej"]
[Result "1-0"]
[ECO "B34"]
[WhiteElo "1510"]
[BlackElo "1274"]
[Annotator "NA"]
[PlyCount "75"]
[EventDate "2020.03.07"]
[EventCountry "CZE"]
[SourceTitle "playchess.com"]
[Source "ChessBase"]
[SourceQuality "1"]
[TimeControl "5400+30"]

1. e4 {[%emt 0:00:00]} c5 {[%emt 0:00:00]} 2. Nf3 {[%emt 0:00:00]} Nc6 {[%emt 0:00:00]} 3. d4 {[%emt 0:00:00]} cxd4 {[%emt 0:00:01]} 4. Nxd4 {[%emt 0:00:00]} Nf6 {[%emt 0:00:56]} 5. Nc3 {[%emt 0:00:13]} e5 {[%emt 0:00:09]} 6. Ndb5 {[%emt 0:00:17]} d6 {[%emt 0:00:30]} 7. Nd5 {[%emt 0:00:25]} Nxd5 {[%emt 0:00:20]} 8. exd5 {[%emt 0:00:08]} Ne7 {[%emt 0:00:24]} 9. c3 {[%emt 0:00:12]} Ng6 {[%emt 0:00:49]} 10. Qa4 {[%emt 0:00:28]} Bd7 {[%emt 0:01:29]} 11. Qb4 {[%emt 0:00:16]} Qb8 {[%emt 0:06:57]} 12. Qc4 {[%emt 0:03:27]} Bxb5 {[%emt 0:03:08]} 13. Qxb5+ {[%emt 0:00:13]} Ke7 {[%emt 0:01:01]} 14. Be2 {[%emt 0:00:43]} Qc7 {[%emt 0:03:42]} 15. O-O {[%emt 0:01:41]} f6 {[%emt 0:04:03]} 16. Be3 {[%emt 0:01:36]} Rg8 {[%emt 0:06:42]} 17. Bg4 {[%emt 0:01:18]} Nh8 {[%emt 0:06:26]} 18. Be6 {[%emt 0:00:58]} Nf7 {[%emt 0:02:51]} 19. c4 {[%emt 0:02:21]} b6 {[%emt 0:09:57]} 20. b4 {[%emt 0:05:17]} Rb8 {[%emt 0:04:11]} 21. Qa6 {[%emt 0:01:52]} Rh8 {[%emt 0:03:34]} 22. Rac1 {[%emt 0:07:19]} Qb7 {[%emt 0:08:08]} 23. Qa4 {[%emt 0:03:55]} Nd8 {[%emt 0:07:54]} 24. Bh3 {[%emt 0:00:33]} Kf7 {[%emt 0:02:40]} 25. Rfd1 {[%emt 0:06:37]} Be7 {[%emt 0:02:13]} 26. c5 {[%emt 0:02:42]} bxc5 {[%emt 0:05:04]} 27. bxc5 {[%emt 0:00:16]} g6 {[%emt 0:03:58]} 28. c6 {[%emt 0:01:26]} Qc7 {[%emt 0:01:19]} 29. Qxa7 {[%emt 0:01:01]} Qxa7 {[%emt 0:01:43]} 30. Bxa7 {[%emt 0:00:36]} Ra8 {[%emt 0:02:02]} 31. c7 {[%emt 0:00:28]} Nb7 {[%emt 0:00:43]} 32. Bb8 {[%emt 0:00:24]} Raxb8 {[%emt 0:00:00]} 33. cxb8=Q {[%emt 0:00:00]} Rxb8 {[%emt 0:00:00]} 34. Be6+ {[%emt 0:00:24]} Ke8 {[%emt 0:00:11]} 35. Rb1 {[%emt 0:01:19]} Bd8 {[%emt 0:01:31]} 36. Rdc1 {[%emt 0:00:28]} Ba5 {[%emt 0:01:42]} 37. Bc8 {[%emt 0:00:55]} Kd8 {[%emt 0:00:42]} 38. Bxb7 {[%emt 0:00:22]} 1-0

[Event "CZE-ch U12 2020"]
[Site "Kouty nad Desnou"]
[Date "2020.03.08"]
[Round "2.11"]
[White "Sedmihradsky, Tomas"]
[Black "Buchta, Bartolomej"]
[Result "1-0"]
[ECO "B21"]
[WhiteElo "1024"]
[BlackElo "1508"]
[Annotator "NA"]
[PlyCount "93"]
[EventDate "2020.03.07"]
[EventCountry "CZE"]
[SourceTitle "playchess.com"]
[Source "ChessBase"]
[SourceQuality "1"]
[TimeControl "5400+30"]

1. e4 {[%emt 0:00:00]} c5 {[%emt 0:00:00]} 2. f4 {[%emt 0:00:00]} d6 {[%emt 0:00:18]} 3. Nf3 {[%emt 0:00:15]} e6 {[%emt 0:01:01]} 4. d3 {[%emt 0:00:14]} Nf6 {[%emt 0:02:58]} 5. Nc3 {[%emt 0:00:36]} Nc6 {[%emt 0:02:03]} 6. g3 {[%emt 0:01:08]} Rb8 {[%emt 0:01:52]} 7. Bg2 {[%emt 0:01:26]} b5 {[%emt 0:10:08]} 8. a3 {[%emt 0:00:42]} Qc7 {[%emt 0:02:09]} 9. O-O {[%emt 0:01:22]} Be7 {[%emt 0:01:36]} 10. Kh1 {[%emt 0:00:50]} O-O {[%emt 0:01:56]} 11. Be3 {[%emt 0:01:04]} e5 {[%emt 0:04:02]} 12. f5 {[%emt 0:01:35]} Nd4 {[%emt 0:02:06]} 13. Bxd4 {[%emt 0:01:44]} cxd4 {[%emt 0:00:21]} 14. Nd5 {[%emt 0:02:24]} Nxd5 {[%emt 0:00:13]} 15. exd5 {[%emt 0:00:06]} b4 {[%emt 0:07:56]} 16. a4 {[%emt 0:02:25]} Qb7 {[%emt 0:09:54]} 17. Nd2 {[%emt 0:01:33]} Qa8 {[%emt 0:05:13]} 18. Nc4 {[%emt 0:01:22]} Bb7 {[%emt 0:01:13]} 19. Qf3 {[%emt 0:00:46]} Rfc8 {[%emt 0:02:36]} 20. Na5 {[%emt 0:17:45]} Rxc2 {[%emt 0:03:12]} 21. Nc6 {[%emt 0:00:11]} Bxc6 {[%emt 0:00:29]} 22. dxc6 {[%emt 0:00:14]} Rc8 {[%emt 0:02:18]} 23. Rac1 {[%emt 0:00:32]} Rc5 {[%emt 0:01:00]} 24. Rxc5 {[%emt 0:00:22]} dxc5 {[%emt 0:00:07]} 25. Qd5 {[%emt 0:00:31]} Qb8 {[%emt 0:02:08]} 26. Re1 {[%emt 0:01:24]} Bd6 {[%emt 0:01:30]} 27. b3 {[%emt 0:02:29]} Qc7 {[%emt 0:03:53]} 28. h4 {[%emt 0:01:47]} Qe7 {[%emt 0:03:16]} 29. Qf3 {[%emt 0:06:51]} Qf6 {[%emt 0:02:38]} 30. Qf2 {[%emt 0:03:00]} Qh6 {[%emt 0:01:47]} 31. Bd5 {[%emt 0:08:20]} Qh5 {[%emt 0:03:27]} 32. Kg2 {[%emt 0:04:50]} Rd8 {[%emt 0:06:20]} 33. Kh3 {[%emt 0:00:38]} g5 {[%emt 0:02:01]} 34. fxg6 {[%emt 0:01:55]} Qxg6 {[%emt 0:00:09]} 35. Qf3 {[%emt 0:00:38]} Bc7 {[%emt 0:01:41]} 36. h5 {[%emt 0:01:24]} Qg7 {[%emt 0:01:02]} 37. Rf1 {[%emt 0:00:33]} Rf8 {[%emt 0:00:30]} 38. g4 {[%emt 0:02:19]} Kh8 {[%emt 0:04:57]} 39. Qf5 {[%emt 0:03:04]} f6 {[%emt 0:02:12]} 40. g5 {[%emt 0:00:29]} Bd8 {[%emt 0:00:47]} 41. Rf3 {[%emt 0:07:26]} Qe7 {[%emt 0:03:06]} 42. gxf6 {[%emt 0:06:07]} Rxf6 {[%emt 0:00:50]} 43. Qxf6+ {[%emt 0:00:16]} Qxf6 {[%emt 0:00:27]} 44. Rxf6 {[%emt 0:00:07]} Kg7 {[%emt 0:00:43]} 45. Rf7+ {[%emt 0:00:24]} Kh6 {[%emt 0:00:07]} 46. c7 {[%emt 0:00:11]} Bxc7 {[%emt 0:00:15]} 47. Rxc7 1-0

[Event "CZE-ch U12 2020"]
[Site "Kouty nad Desnou"]
[Date "2020.03.08"]
[Round "2.12"]
[White "Matusik, Ondrej"]
[Black "Matus, Jakub"]
[Result "1-0"]
[ECO "B32"]
[WhiteElo "1482"]
[BlackElo "1240"]
[Annotator "NA"]
[PlyCount "83"]
[EventDate "2020.03.07"]
[EventCountry "CZE"]
[SourceTitle "playchess.com"]
[Source "ChessBase"]
[SourceQuality "1"]
[TimeControl "5400+30"]

1. e4 {[%emt 0:00:00]} c5 {[%emt 0:00:00]} 2. Nf3 {[%emt 0:00:00]} Nc6 {[%emt 0:00:00]} 3. d4 {[%emt 0:00:00]} cxd4 {[%emt 0:00:00]} 4. Nxd4 {[%emt 0:00:00]} e5 {[%emt 0:00:00]} 5. Nb5 {[%emt 0:02:07]} d6 {[%emt 0:00:00]} 6. N1c3 {[%emt 0:01:17]} a6 {[%emt 0:00:03]} 7. Na3 {[%emt 0:01:11]} b5 {[%emt 0:00:10]} 8. Nd5 {[%emt 0:02:37]} Nge7 {[%emt 0:01:29]} 9. Be3 {[%emt 0:04:58]} Nxd5 {[%emt 0:03:43]} 10. Qxd5 {[%emt 0:07:37]} Bb7 {[%emt 0:02:43]} 11. f3 {[%emt 0:19:01]} Qc7 {[%emt 0:04:34]} 12. Qd2 {[%emt 0:03:12]} Be7 {[%emt 0:01:08]} 13. c4 {[%emt 0:02:23]} b4 {[%emt 0:01:44]} 14. Nc2 {[%emt 0:00:32]} a5 {[%emt 0:00:42]} 15. b3 {[%emt 0:02:40]} h6 {[%emt 0:03:04]} 16. Bd3 {[%emt 0:03:08]} Nd8 {[%emt 0:05:30]} 17. h4 {[%emt 0:01:56]} Ne6 {[%emt 0:00:41]} 18. g4 {[%emt 0:00:29]} f6 {[%emt 0:02:13]} 19. O-O-O {[%emt 0:04:41]} Nc5 {[%emt 0:03:18]} 20. Ne1 {[%emt 0:02:53]} Bc8 {[%emt 0:02:46]} 21. Bc2 {[%emt 0:01:32]} Bd7 {[%emt 0:01:38]} 22. Nd3 {[%emt 0:01:21]} Nxd3+ {[%emt 0:03:54]} 23. Qxd3 {[%emt 0:00:25]} a4 {[%emt 0:01:40]} 24. g5 {[%emt 0:02:53]} axb3 {[%emt 0:04:04]} 25. Bxb3 {[%emt 0:00:52]} Ba4 {[%emt 0:00:20]} 26. Kb1 {[%emt 0:04:51]} Kd7 {[%emt 0:02:15]} 27. gxh6 {[%emt 0:03:23]} gxh6 {[%emt 0:00:18]} 28. Rhg1 {[%emt 0:00:48]} Bxb3 {[%emt 0:02:21]} 29. Qxb3 {[%emt 0:00:18]} Ra3 {[%emt 0:00:12]} 30. Qb2 {[%emt 0:04:38]} Rxe3 {[%emt 0:00:37]} 31. Qf2 {[%emt 0:00:25]} Ra3 {[%emt 0:01:12]} 32. c5 {[%emt 0:01:25]} Ke8 {[%emt 0:01:31]} 33. cxd6 {[%emt 0:03:19]} Bxd6 {[%emt 0:00:13]} 34. Qd2 {[%emt 0:01:58]} Ra6 {[%emt 0:01:29]} 35. Rg6 {[%emt 0:01:43]} Be7 {[%emt 0:02:14]} 36. Rxh6 {[%emt 0:01:36]} Rxh6 {[%emt 0:01:01]} 37. Qxh6 {[%emt 0:00:08]} Bf8 {[%emt 0:00:09]} 38. Qg6+ {[%emt 0:00:42]} Qf7 {[%emt 0:00:10]} 39. Rd8+ {[%emt 0:00:27]} Kxd8 {[%emt 0:00:58]} 40. Qxf7 {[%emt 0:00:21]} Be7 {[%emt 0:00:04]} 41. h5 {[%emt 0:00:32]} Kd7 {[%emt 0:00:17]} 42. h6 {[%emt 0:00:34]} 1-0

[Event "CZE-ch U12 2020"]
[Site "Kouty nad Desnou"]
[Date "2020.03.09"]
[Round "3.1"]
[White "Fizer, Marek"]
[Black "Nemec, Jachym"]
[Result "0-1"]
[ECO "B34"]
[WhiteElo "1907"]
[BlackElo "2108"]
[Annotator "ChessBase"]
[PlyCount "117"]
[EventDate "2020.03.07"]
[EventCountry "CZE"]
[SourceTitle "playchess.com"]
[Source "ChessBase"]
[SourceQuality "1"]
[TimeControl "5400+30"]

1. e4 {[%emt 0:00:00]} c5 {[%emt 0:00:00]} 2. Nf3 {[%emt 0:00:00]} Nc6 {[%emt 0:00:00]} 3. d4 {[%emt 0:00:00]} cxd4 {[%emt 0:00:00]} 4. Nxd4 {[%emt 0:00:00]} Nf6 {[%emt 0:00:00]} 5. Nc3 {[%emt 0:00:15]} e5 {[%emt 0:00:03]} 6. Ndb5 {[%emt 0:00:14]} d6 {[%emt 0:00:06]} 7. Nd5 {[%emt 0:01:09]} Nxd5 {[%emt 0:00:06]} 8. exd5 {[%emt 0:00:06]} Nb8 {[%emt 0:00:05]} 9. c4 {[%emt 0:00:57]} Be7 {[%emt 0:00:07]} 10. Be2 {[%emt 0:01:23]} O-O {[%emt 0:00:36]} 11. O-O {[%emt 0:00:40]} Nd7 {[%emt 0:00:33]} 12. Be3 {[%emt 0:01:53]} a6 {[%emt 0:00:18]} 13. Nc3 {[%emt 0:00:47]} f5 {[%emt 0:02:32]} 14. Rc1 {[%emt 0:03:01]} a5 {[%emt 0:24:21]} 15. Na4 {[%emt 0:05:18]} f4 {[%emt 0:02:55]} 16. Bd2 {[%emt 0:00:40]} b6 {[%emt 0:00:11]} 17. Bf3 {[%emt 0:15:25]} Nf6 {[%emt 0:01:31]} 18. Qc2 {[%emt 0:00:50]} Bg4 {[%emt 0:09:50]} 19. Bxg4 {[%emt 0:01:23]} Nxg4 {[%emt 0:00:05]} 20. f3 {[%emt 0:01:21]} Nh6 {[%emt 0:00:36]} 21. Nc3 {[%emt 0:04:12]} Nf5 {[%emt 0:00:26]} 22. Ne4 {[%emt 0:00:50]} Qd7 {[%emt 0:01:08]} 23. a3 {[%emt 0:00:58]} a4 {[%emt 0:01:35]} 24. Qd3 {[%emt 0:07:03]} Kh8 {[%emt 0:00:27]} 25. g4 {[%emt 0:04:03]} fxg3 {[%emt 0:00:25]} 26. hxg3 {[%emt 0:00:14]} Rf7 {[%emt 0:07:48]} 27. Rf2 {[%emt 0:01:22]} Raf8 {[%emt 0:00:37]} 28. Rcf1 {[%emt 0:00:46]} Bd8 {[%emt 0:02:03]} 29. Rh2 {[%emt 0:00:39]} g6 {[%emt 0:00:35]} 30. Kg2 {[%emt 0:02:38]} Nd4 {[%emt 0:02:11]} 31. f4 {[%emt 0:01:39]} Nf5 {[%emt 0:08:51]} 32. Bc3 {[%emt 0:01:27]} Re8 {[%emt 0:02:05]} 33. fxe5 {[%emt 0:03:09]} dxe5 {[%emt 0:00:05]} 34. c5 {[%emt 0:00:48]} bxc5 {[%emt 0:00:50]} 35. Nxc5 {[%emt 0:01:11]} Qd6 {[%emt 0:06:24]} 36. Bb4 {[%emt 0:03:50]} Qb6 {[%emt 0:02:19]} 37. Qe4 {[%emt 0:10:24]} Qb5 {[%emt 0:02:15]} 38. Rf2 {[%emt 0:01:34]} Bb6 {[%emt 0:01:35]} 39. g4 {[%emt 0:01:10]} Bxc5 {[%emt 0:09:35]} 40. Bxc5 {[%emt 0:00:13]} Qxc5 {[%emt 0:00:08]} 41. gxf5 {[%emt 0:00:08]} gxf5 {[%emt 0:00:06]} 42. Rxf5 {[%emt 0:01:22]} Rg8+ {[%emt 0:00:13]} 43. Kf3 {[%emt 0:01:59]} Rxf5+ {[%emt 0:00:33]} 44. Qxf5 {[%emt 0:00:05]} Rf8 {[%emt 0:00:09]} 45. Rxh7+ {[%emt 0:00:05]} Kg8 {[%emt 0:00:03]} 46. Rh5 {[%emt 0:00:24]} Rxf5+ {[%emt 0:00:35]} 47. Rxf5 {[%emt 0:00:05]} Qxd5+ {[%emt 0:00:04]} 48. Kg3 {[%emt 0:01:11]} Qd3+ {[%emt 0:00:03]} 49. Rf3 {[%emt 0:00:09]} Qd4 {[%emt 0:00:07]} 50. Rf2 {[%emt 0:00:27]} e4 {[%emt 0:00:05]} 51. Re2 {[%emt 0:00:38]} Kf7 {[%emt 0:00:06]} 52. Kf4 {[%emt 0:00:23]} e3+ {[%emt 0:02:46]} 53. Kf3 {[%emt 0:00:19]} Kf6 {[%emt 0:00:32]} 54. Rxe3 {[%emt 0:00:20]} Qxb2 {[%emt 0:00:05]} 55. Rd3 {[%emt 0:00:32]} Ke5 {[%emt 0:00:10]} 56. Ke3 {[%emt 0:01:35]} Qg2 {[%emt 0:00:13]} 57. Rc3 {[%emt 0:00:37]} Qg3+ {[%emt 0:00:17]} 58. Kd2 {[%emt 0:00:04]} Qf2+ {[%emt 0:00:18]} 59. Kd3 {[%emt 0:00:16]} 0-1

[Event "CZE-ch U12 2020"]
[Site "Kouty nad Desnou"]
[Date "2020.03.09"]
[Round "3.2"]
[White "Brozka, Karel"]
[Black "Prazak, Daniel"]
[Result "1/2-1/2"]
[ECO "D91"]
[WhiteElo "2013"]
[BlackElo "1765"]
[Annotator "ChessBase"]
[PlyCount "83"]
[EventDate "2020.03.07"]
[EventCountry "CZE"]
[SourceTitle "playchess.com"]
[Source "ChessBase"]
[SourceQuality "1"]
[TimeControl "5400+30"]

1. d4 {[%emt 0:00:00]} Nf6 {[%emt 0:00:00]} 2. Nf3 {[%emt 0:00:00]} g6 {[%emt 0:00:10]} 3. c4 {[%emt 0:00:05]} Bg7 {[%emt 0:00:17]} 4. Nc3 {[%emt 0:00:18]} d5 {[%emt 0:00:21]} 5. Bg5 {[%emt 0:01:55]} Ne4 {[%emt 0:00:56]} 6. cxd5 {[%emt 0:00:31]} Nxg5 {[%emt 0:01:03]} 7. Nxg5 {[%emt 0:00:10]} c6 {[%emt 0:01:15]} 8. Nf3 {[%emt 0:06:42]} cxd5 {[%emt 0:00:52]} 9. e3 {[%emt 0:00:38]} Nc6 {[%emt 0:00:39]} 10. Qb3 {[%emt 0:01:05]} e6 {[%emt 0:02:05]} 11. Bd3 {[%emt 0:01:30]} O-O {[%emt 0:03:31]} 12. O-O {[%emt 0:00:29]} Bd7 {[%emt 0:01:12]} 13. Rfc1 {[%emt 0:02:41]} Rc8 {[%emt 0:05:32]} 14. Na4 {[%emt 0:16:56]} b6 {[%emt 0:08:57]} 15. Ba6 {[%emt 0:11:05]} Rc7 {[%emt 0:02:22]} 16. Qc3 {[%emt 0:05:55]} Qb8 {[%emt 0:06:08]} 17. b4 {[%emt 0:06:06]} Bc8 {[%emt 0:10:13]} 18. Bd3 {[%emt 0:02:48]} a6 {[%emt 0:03:21]} 19. Rab1 {[%emt 0:04:34]} b5 {[%emt 0:05:55]} 20. Nc5 {[%emt 0:00:31]} Qa7 {[%emt 0:04:52]} 21. a4 {[%emt 0:02:28]} bxa4 {[%emt 0:03:25]} 22. b5 {[%emt 0:05:26]} axb5 {[%emt 0:04:52]} 23. Bxb5 {[%emt 0:00:24]} Nb8 {[%emt 0:04:09]} 24. Rb4 {[%emt 0:06:31]} Nd7 {[%emt 0:01:45]} 25. Rxa4 {[%emt 0:02:42]} Qxc5 {[%emt 0:02:00]} 26. Qxc5 {[%emt 0:00:24]} Nxc5 {[%emt 0:00:06]} 27. Rxc5 {[%emt 0:00:33]} Rb7 {[%emt 0:01:08]} 28. h3 {[%emt 0:03:41]} Bd7 {[%emt 0:00:20]} 29. Bxd7 {[%emt 0:00:25]} Rxd7 {[%emt 0:00:09]} 30. Rca5 {[%emt 0:00:33]} Rb8 {[%emt 0:01:02]} 31. Ra7 {[%emt 0:01:17]} Rxa7 {[%emt 0:01:02]} 32. Rxa7 {[%emt 0:00:02]} Rb1+ {[%emt 0:00:44]} 33. Kh2 {[%emt 0:00:04]} Bf6 {[%emt 0:00:17]} 34. g3 {[%emt 0:02:41]} Kg7 {[%emt 0:01:00]} 35. Kg2 {[%emt 0:00:13]} Rb2 {[%emt 0:01:48]} 36. h4 {[%emt 0:01:48]} h5 {[%emt 0:00:53]} 37. Rd7 {[%emt 0:01:38]} Re2 {[%emt 0:01:31]} 38. Ng1 {[%emt 0:00:50]} Ra2 {[%emt 0:00:45]} 39. Nh3 {[%emt 0:00:50]} Kf8 {[%emt 0:01:28]} 40. Nf4 {[%emt 0:00:42]} Bg7 {[%emt 0:01:39]} 41. Rb7 {[%emt 0:00:40]} Bh6 {[%emt 0:00:20]} 42. Rc7 {[%emt 0:01:06]} 1/2-1/2